{"text_format":"1","workbook":"xlsx","n_sheets":22,"sheets":["Summary","Inputs","BalanceSheet","NI Chart","TSE Chart","IncomeStatement","StatementOfRetainedEarnings","StatementOfCashFlows","FinancingCashOut","FinancingCashIn","InvestingCashIn","InvestingCashOut","OperatingCashIn","OperatingCashOut","Sales","R.E.","Eqpt","Labor","CGS","Financial","Other","Sheet3"],"not_rendered":{"charts":0,"images":0,"macros":1,"external_links":0,"defined_names":75,"comments":0,"pivot_tables":0},"unopened":[],"bounds":{"document_bytes":16777216,"sheet_cells":100000,"rows_first":2000,"rows_last":500,"rows_between":2000,"halvings":0,"cell_chars":16384,"cell_head_chars":4096},"cells_cut":0,"cells_raw":0,"read":"whole","date_system":"1904"}

{"sheet":"Summary","index":0,"n_rows":18,"n_cols":7,"rows_kept":18,"cut":false,"hidden":false,"merged":[[3,3,3,6]]}
[]
[]
[null,null,"Version","4.01"]
[null,null,null,"Issues List"]
[]
[null,null,"Workbook:","LCGames.xlsx"]
[null,null,"Inspector:"]
[]
[null,"Workbook Issues",null,"Checklist Item","Location of Occurrence #1","Additional Occurrences","Comments"]
[null,null,1,"Version Number"]
[null,null,2,"No Empty Worksheets"]
[null,null,3,"User-modifiable data segregated"]
[]
[]
[null,null,null,null,null,"CTRL+Tab","Next Workbook"]
[null,null,null,null,null,"CTRL+Shift+Tab","Previous Workbook"]
[null,null,null,null,null,"CTRL+PAGE UP","Previous Worksheet"]
[null,null,null,null,null,"CTRL+PAGE  DOWN","Next Worksheet"]

{"sheet":"Inputs","index":1,"n_rows":29,"n_cols":6,"rows_kept":29,"cut":false,"hidden":false,"merged":[[3,2,3,5]]}
[]
[]
[]
[null,null,"Issues List"]
[]
[null,"Worksheet:",{"$f":"ThisSheet()","v":"Inputs"}]
[null,"Inspector:",{"$f":"Inspector","v":0}]
[]
[null,null,"Checklist Item","Location of Occurrence #1","Additional Occurrences","Comments"]
[null,1,"Sheet name"]
[null,2,"Range names"]
[null,3,"Parameter names"]
[null,4,"Range name abbreviations"]
[null,5,"Cross-sheet links use names"]
[null,6,"Row captions"]
[null,7,"Column headings"]
[null,8,"Numeric cells"]
[null,9,"Dollar format"]
[null,10,"Percentage format"]
[null,11,"Font styles"]
[null,12,"Linked text"]
[null,13,"Spell check"]
[null,14,"Error values"]
[null,15,"No numeric constants in formulas"]
[null,16,"Numeric constants in named cells"]
[null,17,"Total cells"]
[null,18,"Array formulas"]
[null,19,"Defined names exist"]
[null,20,"No circular reference errors"]

{"sheet":"BalanceSheet","index":2,"n_rows":29,"n_cols":6,"rows_kept":29,"cut":false,"hidden":false,"merged":[[3,2,3,5]]}
[]
[]
[]
[null,null,"Issues List"]
[]
[null,"Worksheet:",{"$f":"ThisSheet()","v":"BalanceSheet"}]
[null,"Inspector:",{"$f":"Inspector","v":0}]
[]
[null,null,"Checklist Item","Location of Occurrence #1","Additional Occurrences","Comments"]
[null,1,"Sheet name"]
[null,2,"Range names"]
[null,3,"Parameter names"]
[null,4,"Range name abbreviations"]
[null,5,"Cross-sheet links use names"]
[null,6,"Row captions"]
[null,7,"Column headings"]
[null,8,"Numeric cells"]
[null,9,"Dollar format"]
[null,10,"Percentage format"]
[null,11,"Font styles"]
[null,12,"Linked text"]
[null,13,"Spell check"]
[null,14,"Error values"]
[null,15,"No numeric constants in formulas"]
[null,16,"Numeric constants in named cells"]
[null,17,"Total cells"]
[null,18,"Array formulas"]
[null,19,"Defined names exist"]
[null,20,"No circular reference errors"]

{"sheet":"NI Chart","index":3,"n_rows":29,"n_cols":6,"rows_kept":29,"cut":false,"hidden":false,"merged":[[3,2,3,5]]}
[]
[]
[]
[null,null,"Issues List"]
[]
[null,"Worksheet:",{"$f":"ThisSheet()","v":"NI Chart"}]
[null,"Inspector:",{"$f":"Inspector","v":0}]
[]
[null,null,"Checklist Item","Location of Occurrence #1","Additional Occurrences","Comments"]
[null,1,"Sheet name"]
[null,2,"Range names"]
[null,3,"Parameter names"]
[null,4,"Range name abbreviations"]
[null,5,"Cross-sheet links use names"]
[null,6,"Row captions"]
[null,7,"Column headings"]
[null,8,"Numeric cells"]
[null,9,"Dollar format"]
[null,10,"Percentage format"]
[null,11,"Font styles"]
[null,12,"Linked text"]
[null,13,"Spell check"]
[null,14,"Error values"]
[null,15,"No numeric constants in formulas"]
[null,16,"Numeric constants in named cells"]
[null,17,"Total cells"]
[null,18,"Array formulas"]
[null,19,"Defined names exist"]
[null,20,"No circular reference errors"]

{"sheet":"TSE Chart","index":4,"n_rows":29,"n_cols":6,"rows_kept":29,"cut":false,"hidden":false,"merged":[[3,2,3,5]]}
[]
[]
[]
[null,null,"Issues List"]
[]
[null,"Worksheet:",{"$f":"ThisSheet()","v":"TSE Chart"}]
[null,"Inspector:",{"$f":"Inspector","v":0}]
[]
[null,null,"Checklist Item","Location of Occurrence #1","Additional Occurrences","Comments"]
[null,1,"Sheet name"]
[null,2,"Range names"]
[null,3,"Parameter names"]
[null,4,"Range name abbreviations"]
[null,5,"Cross-sheet links use names"]
[null,6,"Row captions"]
[null,7,"Column headings"]
[null,8,"Numeric cells"]
[null,9,"Dollar format"]
[null,10,"Percentage format"]
[null,11,"Font styles"]
[null,12,"Linked text"]
[null,13,"Spell check"]
[null,14,"Error values"]
[null,15,"No numeric constants in formulas"]
[null,16,"Numeric constants in named cells"]
[null,17,"Total cells"]
[null,18,"Array formulas"]
[null,19,"Defined names exist"]
[null,20,"No circular reference errors"]

{"sheet":"IncomeStatement","index":5,"n_rows":29,"n_cols":6,"rows_kept":29,"cut":false,"hidden":false,"merged":[[3,2,3,5]]}
[]
[]
[]
[null,null,"Issues List"]
[]
[null,"Worksheet:",{"$f":"ThisSheet()","v":"IncomeStatement"}]
[null,"Inspector:",{"$f":"Inspector","v":0}]
[]
[null,null,"Checklist Item","Location of Occurrence #1","Additional Occurrences","Comments"]
[null,1,"Sheet name"]
[null,2,"Range names"]
[null,3,"Parameter names"]
[null,4,"Range name abbreviations"]
[null,5,"Cross-sheet links use names"]
[null,6,"Row captions"]
[null,7,"Column headings"]
[null,8,"Numeric cells"]
[null,9,"Dollar format"]
[null,10,"Percentage format"]
[null,11,"Font styles"]
[null,12,"Linked text"]
[null,13,"Spell check"]
[null,14,"Error values"]
[null,15,"No numeric constants in formulas"]
[null,16,"Numeric constants in named cells"]
[null,17,"Total cells"]
[null,18,"Array formulas"]
[null,19,"Defined names exist"]
[null,20,"No circular reference errors"]

{"sheet":"StatementOfRetainedEarnings","index":6,"n_rows":29,"n_cols":6,"rows_kept":29,"cut":false,"hidden":false,"merged":[[3,2,3,5]]}
[]
[]
[]
[null,null,"Issues List"]
[]
[null,"Worksheet:",{"$f":"ThisSheet()","v":"StatementOfRetainedEarnings"}]
[null,"Inspector:",{"$f":"Inspector","v":0}]
[]
[null,null,"Checklist Item","Location of Occurrence #1","Additional Occurrences","Comments"]
[null,1,"Sheet name"]
[null,2,"Range names"]
[null,3,"Parameter names"]
[null,4,"Range name abbreviations"]
[null,5,"Cross-sheet links use names"]
[null,6,"Row captions"]
[null,7,"Column headings"]
[null,8,"Numeric cells"]
[null,9,"Dollar format"]
[null,10,"Percentage format"]
[null,11,"Font styles"]
[null,12,"Linked text"]
[null,13,"Spell check"]
[null,14,"Error values"]
[null,15,"No numeric constants in formulas"]
[null,16,"Numeric constants in named cells"]
[null,17,"Total cells"]
[null,18,"Array formulas"]
[null,19,"Defined names exist"]
[null,20,"No circular reference errors"]

{"sheet":"StatementOfCashFlows","index":7,"n_rows":29,"n_cols":6,"rows_kept":29,"cut":false,"hidden":false,"merged":[[3,2,3,5]]}
[]
[]
[]
[null,null,"Issues List"]
[]
[null,"Worksheet:",{"$f":"ThisSheet()","v":"StatementOfCashFlows"}]
[null,"Inspector:",{"$f":"Inspector","v":0}]
[]
[null,null,"Checklist Item","Location of Occurrence #1","Additional Occurrences","Comments"]
[null,1,"Sheet name"]
[null,2,"Range names"]
[null,3,"Parameter names"]
[null,4,"Range name abbreviations"]
[null,5,"Cross-sheet links use names"]
[null,6,"Row captions"]
[null,7,"Column headings"]
[null,8,"Numeric cells"]
[null,9,"Dollar format"]
[null,10,"Percentage format"]
[null,11,"Font styles"]
[null,12,"Linked text"]
[null,13,"Spell check"]
[null,14,"Error values"]
[null,15,"No numeric constants in formulas"]
[null,16,"Numeric constants in named cells"]
[null,17,"Total cells"]
[null,18,"Array formulas"]
[null,19,"Defined names exist"]
[null,20,"No circular reference errors"]

{"sheet":"FinancingCashOut","index":8,"n_rows":29,"n_cols":6,"rows_kept":29,"cut":false,"hidden":false,"merged":[[3,2,3,5]]}
[]
[]
[]
[null,null,"Issues List"]
[]
[null,"Worksheet:",{"$f":"ThisSheet()","v":"FinancingCashOut"}]
[null,"Inspector:",{"$f":"Inspector","v":0}]
[]
[null,null,"Checklist Item","Location of Occurrence #1","Additional Occurrences","Comments"]
[null,1,"Sheet name"]
[null,2,"Range names"]
[null,3,"Parameter names"]
[null,4,"Range name abbreviations"]
[null,5,"Cross-sheet links use names"]
[null,6,"Row captions"]
[null,7,"Column headings"]
[null,8,"Numeric cells"]
[null,9,"Dollar format"]
[null,10,"Percentage format"]
[null,11,"Font styles"]
[null,12,"Linked text"]
[null,13,"Spell check"]
[null,14,"Error values"]
[null,15,"No numeric constants in formulas"]
[null,16,"Numeric constants in named cells"]
[null,17,"Total cells"]
[null,18,"Array formulas"]
[null,19,"Defined names exist"]
[null,20,"No circular reference errors"]

{"sheet":"FinancingCashIn","index":9,"n_rows":29,"n_cols":6,"rows_kept":29,"cut":false,"hidden":false,"merged":[[3,2,3,5]]}
[]
[]
[]
[null,null,"Issues List"]
[]
[null,"Worksheet:",{"$f":"ThisSheet()","v":"FinancingCashIn"}]
[null,"Inspector:",{"$f":"Inspector","v":0}]
[]
[null,null,"Checklist Item","Location of Occurrence #1","Additional Occurrences","Comments"]
[null,1,"Sheet name"]
[null,2,"Range names"]
[null,3,"Parameter names"]
[null,4,"Range name abbreviations"]
[null,5,"Cross-sheet links use names"]
[null,6,"Row captions"]
[null,7,"Column headings"]
[null,8,"Numeric cells"]
[null,9,"Dollar format"]
[null,10,"Percentage format"]
[null,11,"Font styles"]
[null,12,"Linked text"]
[null,13,"Spell check"]
[null,14,"Error values"]
[null,15,"No numeric constants in formulas"]
[null,16,"Numeric constants in named cells"]
[null,17,"Total cells"]
[null,18,"Array formulas"]
[null,19,"Defined names exist"]
[null,20,"No circular reference errors"]

{"sheet":"InvestingCashIn","index":10,"n_rows":29,"n_cols":6,"rows_kept":29,"cut":false,"hidden":false,"merged":[[3,2,3,5]]}
[]
[]
[]
[null,null,"Issues List"]
[]
[null,"Worksheet:",{"$f":"ThisSheet()","v":"InvestingCashIn"}]
[null,"Inspector:",{"$f":"Inspector","v":0}]
[]
[null,null,"Checklist Item","Location of Occurrence #1","Additional Occurrences","Comments"]
[null,1,"Sheet name"]
[null,2,"Range names"]
[null,3,"Parameter names"]
[null,4,"Range name abbreviations"]
[null,5,"Cross-sheet links use names"]
[null,6,"Row captions"]
[null,7,"Column headings"]
[null,8,"Numeric cells"]
[null,9,"Dollar format"]
[null,10,"Percentage format"]
[null,11,"Font styles"]
[null,12,"Linked text"]
[null,13,"Spell check"]
[null,14,"Error values"]
[null,15,"No numeric constants in formulas"]
[null,16,"Numeric constants in named cells"]
[null,17,"Total cells"]
[null,18,"Array formulas"]
[null,19,"Defined names exist"]
[null,20,"No circular reference errors"]

{"sheet":"InvestingCashOut","index":11,"n_rows":29,"n_cols":6,"rows_kept":29,"cut":false,"hidden":false,"merged":[[3,2,3,5]]}
[]
[]
[]
[null,null,"Issues List"]
[]
[null,"Worksheet:",{"$f":"ThisSheet()","v":"InvestingCashOut"}]
[null,"Inspector:",{"$f":"Inspector","v":0}]
[]
[null,null,"Checklist Item","Location of Occurrence #1","Additional Occurrences","Comments"]
[null,1,"Sheet name"]
[null,2,"Range names"]
[null,3,"Parameter names"]
[null,4,"Range name abbreviations"]
[null,5,"Cross-sheet links use names"]
[null,6,"Row captions"]
[null,7,"Column headings"]
[null,8,"Numeric cells"]
[null,9,"Dollar format"]
[null,10,"Percentage format"]
[null,11,"Font styles"]
[null,12,"Linked text"]
[null,13,"Spell check"]
[null,14,"Error values"]
[null,15,"No numeric constants in formulas"]
[null,16,"Numeric constants in named cells"]
[null,17,"Total cells"]
[null,18,"Array formulas"]
[null,19,"Defined names exist"]
[null,20,"No circular reference errors"]

{"sheet":"OperatingCashIn","index":12,"n_rows":29,"n_cols":6,"rows_kept":29,"cut":false,"hidden":false,"merged":[[3,2,3,5]]}
[]
[]
[]
[null,null,"Issues List"]
[]
[null,"Worksheet:",{"$f":"ThisSheet()","v":"OperatingCashIn"}]
[null,"Inspector:",{"$f":"Inspector","v":0}]
[]
[null,null,"Checklist Item","Location of Occurrence #1","Additional Occurrences","Comments"]
[null,1,"Sheet name"]
[null,2,"Range names"]
[null,3,"Parameter names"]
[null,4,"Range name abbreviations"]
[null,5,"Cross-sheet links use names"]
[null,6,"Row captions"]
[null,7,"Column headings"]
[null,8,"Numeric cells"]
[null,9,"Dollar format"]
[null,10,"Percentage format"]
[null,11,"Font styles"]
[null,12,"Linked text"]
[null,13,"Spell check"]
[null,14,"Error values"]
[null,15,"No numeric constants in formulas"]
[null,16,"Numeric constants in named cells"]
[null,17,"Total cells"]
[null,18,"Array formulas"]
[null,19,"Defined names exist"]
[null,20,"No circular reference errors"]

{"sheet":"OperatingCashOut","index":13,"n_rows":29,"n_cols":6,"rows_kept":29,"cut":false,"hidden":false,"merged":[[3,2,3,5]]}
[]
[]
[]
[null,null,"Issues List"]
[]
[null,"Worksheet:",{"$f":"ThisSheet()","v":"OperatingCashOut"}]
[null,"Inspector:",{"$f":"Inspector","v":0}]
[]
[null,null,"Checklist Item","Location of Occurrence #1","Additional Occurrences","Comments"]
[null,1,"Sheet name"]
[null,2,"Range names"]
[null,3,"Parameter names"]
[null,4,"Range name abbreviations"]
[null,5,"Cross-sheet links use names"]
[null,6,"Row captions"]
[null,7,"Column headings"]
[null,8,"Numeric cells"]
[null,9,"Dollar format"]
[null,10,"Percentage format"]
[null,11,"Font styles"]
[null,12,"Linked text"]
[null,13,"Spell check"]
[null,14,"Error values"]
[null,15,"No numeric constants in formulas"]
[null,16,"Numeric constants in named cells"]
[null,17,"Total cells"]
[null,18,"Array formulas"]
[null,19,"Defined names exist"]
[null,20,"No circular reference errors"]

{"sheet":"Sales","index":14,"n_rows":29,"n_cols":6,"rows_kept":29,"cut":false,"hidden":false,"merged":[[3,2,3,5]]}
[]
[]
[]
[null,null,"Issues List"]
[]
[null,"Worksheet:",{"$f":"ThisSheet()","v":"Sales"}]
[null,"Inspector:",{"$f":"Inspector","v":0}]
[]
[null,null,"Checklist Item","Location of Occurrence #1","Additional Occurrences","Comments"]
[null,1,"Sheet name"]
[null,2,"Range names"]
[null,3,"Parameter names"]
[null,4,"Range name abbreviations"]
[null,5,"Cross-sheet links use names"]
[null,6,"Row captions"]
[null,7,"Column headings"]
[null,8,"Numeric cells"]
[null,9,"Dollar format"]
[null,10,"Percentage format"]
[null,11,"Font styles"]
[null,12,"Linked text"]
[null,13,"Spell check"]
[null,14,"Error values"]
[null,15,"No numeric constants in formulas"]
[null,16,"Numeric constants in named cells"]
[null,17,"Total cells"]
[null,18,"Array formulas"]
[null,19,"Defined names exist"]
[null,20,"No circular reference errors"]

{"sheet":"R.E.","index":15,"n_rows":29,"n_cols":6,"rows_kept":29,"cut":false,"hidden":false,"merged":[[3,2,3,5]]}
[]
[]
[]
[null,null,"Issues List"]
[]
[null,"Worksheet:",{"$f":"ThisSheet()","v":"R.E."}]
[null,"Inspector:",{"$f":"Inspector","v":0}]
[]
[null,null,"Checklist Item","Location of Occurrence #1","Additional Occurrences","Comments"]
[null,1,"Sheet name"]
[null,2,"Range names"]
[null,3,"Parameter names"]
[null,4,"Range name abbreviations"]
[null,5,"Cross-sheet links use names"]
[null,6,"Row captions"]
[null,7,"Column headings"]
[null,8,"Numeric cells"]
[null,9,"Dollar format"]
[null,10,"Percentage format"]
[null,11,"Font styles"]
[null,12,"Linked text"]
[null,13,"Spell check"]
[null,14,"Error values"]
[null,15,"No numeric constants in formulas"]
[null,16,"Numeric constants in named cells"]
[null,17,"Total cells"]
[null,18,"Array formulas"]
[null,19,"Defined names exist"]
[null,20,"No circular reference errors"]

{"sheet":"Eqpt","index":16,"n_rows":29,"n_cols":6,"rows_kept":29,"cut":false,"hidden":false,"merged":[[3,2,3,5]]}
[]
[]
[]
[null,null,"Issues List"]
[]
[null,"Worksheet:",{"$f":"ThisSheet()","v":"Eqpt"}]
[null,"Inspector:",{"$f":"Inspector","v":0}]
[]
[null,null,"Checklist Item","Location of Occurrence #1","Additional Occurrences","Comments"]
[null,1,"Sheet name"]
[null,2,"Range names"]
[null,3,"Parameter names"]
[null,4,"Range name abbreviations"]
[null,5,"Cross-sheet links use names"]
[null,6,"Row captions"]
[null,7,"Column headings"]
[null,8,"Numeric cells"]
[null,9,"Dollar format"]
[null,10,"Percentage format"]
[null,11,"Font styles"]
[null,12,"Linked text"]
[null,13,"Spell check"]
[null,14,"Error values"]
[null,15,"No numeric constants in formulas"]
[null,16,"Numeric constants in named cells"]
[null,17,"Total cells"]
[null,18,"Array formulas"]
[null,19,"Defined names exist"]
[null,20,"No circular reference errors"]

{"sheet":"Labor","index":17,"n_rows":29,"n_cols":6,"rows_kept":29,"cut":false,"hidden":false,"merged":[[3,2,3,5]]}
[]
[]
[]
[null,null,"Issues List"]
[]
[null,"Worksheet:",{"$f":"ThisSheet()","v":"Labor"}]
[null,"Inspector:",{"$f":"Inspector","v":0}]
[]
[null,null,"Checklist Item","Location of Occurrence #1","Additional Occurrences","Comments"]
[null,1,"Sheet name"]
[null,2,"Range names"]
[null,3,"Parameter names"]
[null,4,"Range name abbreviations"]
[null,5,"Cross-sheet links use names"]
[null,6,"Row captions"]
[null,7,"Column headings"]
[null,8,"Numeric cells"]
[null,9,"Dollar format"]
[null,10,"Percentage format"]
[null,11,"Font styles"]
[null,12,"Linked text"]
[null,13,"Spell check"]
[null,14,"Error values"]
[null,15,"No numeric constants in formulas"]
[null,16,"Numeric constants in named cells"]
[null,17,"Total cells"]
[null,18,"Array formulas"]
[null,19,"Defined names exist"]
[null,20,"No circular reference errors"]

{"sheet":"CGS","index":18,"n_rows":29,"n_cols":6,"rows_kept":29,"cut":false,"hidden":false,"merged":[[3,2,3,5]]}
[]
[]
[]
[null,null,"Issues List"]
[]
[null,"Worksheet:",{"$f":"ThisSheet()","v":"CGS"}]
[null,"Inspector:",{"$f":"Inspector","v":0}]
[]
[null,null,"Checklist Item","Location of Occurrence #1","Additional Occurrences","Comments"]
[null,1,"Sheet name"]
[null,2,"Range names"]
[null,3,"Parameter names"]
[null,4,"Range name abbreviations"]
[null,5,"Cross-sheet links use names"]
[null,6,"Row captions"]
[null,7,"Column headings"]
[null,8,"Numeric cells"]
[null,9,"Dollar format"]
[null,10,"Percentage format"]
[null,11,"Font styles"]
[null,12,"Linked text"]
[null,13,"Spell check"]
[null,14,"Error values"]
[null,15,"No numeric constants in formulas"]
[null,16,"Numeric constants in named cells"]
[null,17,"Total cells"]
[null,18,"Array formulas"]
[null,19,"Defined names exist"]
[null,20,"No circular reference errors"]

{"sheet":"Financial","index":19,"n_rows":29,"n_cols":6,"rows_kept":29,"cut":false,"hidden":false,"merged":[[3,2,3,5]]}
[]
[]
[]
[null,null,"Issues List"]
[]
[null,"Worksheet:",{"$f":"ThisSheet()","v":"Financial"}]
[null,"Inspector:",{"$f":"Inspector","v":0}]
[]
[null,null,"Checklist Item","Location of Occurrence #1","Additional Occurrences","Comments"]
[null,1,"Sheet name"]
[null,2,"Range names"]
[null,3,"Parameter names"]
[null,4,"Range name abbreviations"]
[null,5,"Cross-sheet links use names"]
[null,6,"Row captions"]
[null,7,"Column headings"]
[null,8,"Numeric cells"]
[null,9,"Dollar format"]
[null,10,"Percentage format"]
[null,11,"Font styles"]
[null,12,"Linked text"]
[null,13,"Spell check"]
[null,14,"Error values"]
[null,15,"No numeric constants in formulas"]
[null,16,"Numeric constants in named cells"]
[null,17,"Total cells"]
[null,18,"Array formulas"]
[null,19,"Defined names exist"]
[null,20,"No circular reference errors"]

{"sheet":"Other","index":20,"n_rows":29,"n_cols":6,"rows_kept":29,"cut":false,"hidden":false,"merged":[[3,2,3,5]]}
[]
[]
[]
[null,null,"Issues List"]
[]
[null,"Worksheet:",{"$f":"ThisSheet()","v":"Other"}]
[null,"Inspector:",{"$f":"Inspector","v":0}]
[]
[null,null,"Checklist Item","Location of Occurrence #1","Additional Occurrences","Comments"]
[null,1,"Sheet name"]
[null,2,"Range names"]
[null,3,"Parameter names"]
[null,4,"Range name abbreviations"]
[null,5,"Cross-sheet links use names"]
[null,6,"Row captions"]
[null,7,"Column headings"]
[null,8,"Numeric cells"]
[null,9,"Dollar format"]
[null,10,"Percentage format"]
[null,11,"Font styles"]
[null,12,"Linked text"]
[null,13,"Spell check"]
[null,14,"Error values"]
[null,15,"No numeric constants in formulas"]
[null,16,"Numeric constants in named cells"]
[null,17,"Total cells"]
[null,18,"Array formulas"]
[null,19,"Defined names exist"]
[null,20,"No circular reference errors"]

{"sheet":"Sheet3","index":21,"n_rows":29,"n_cols":6,"rows_kept":29,"cut":false,"hidden":false,"merged":[[3,2,3,5]]}
[]
[]
[]
[null,null,"Issues List"]
[]
[null,"Worksheet:",{"$f":"ThisSheet()","v":"Sheet3"}]
[null,"Inspector:",{"$f":"Inspector","v":0}]
[]
[null,null,"Checklist Item","Location of Occurrence #1","Additional Occurrences","Comments"]
[null,1,"Sheet name"]
[null,2,"Range names"]
[null,3,"Parameter names"]
[null,4,"Range name abbreviations"]
[null,5,"Cross-sheet links use names"]
[null,6,"Row captions"]
[null,7,"Column headings"]
[null,8,"Numeric cells"]
[null,9,"Dollar format"]
[null,10,"Percentage format"]
[null,11,"Font styles"]
[null,12,"Linked text"]
[null,13,"Spell check"]
[null,14,"Error values"]
[null,15,"No numeric constants in formulas"]
[null,16,"Numeric constants in named cells"]
[null,17,"Total cells"]
[null,18,"Array formulas"]
[null,19,"Defined names exist"]
[null,20,"No circular reference errors"]